{"text_format":"1","workbook":"xlsx","n_sheets":21,"sheets":["TARIFÁLÓ","Családi","Családi díj","VIP","Jogtárs","Jogtárs díj","VIP díj","Gépjárművezetői","Gépjárművezetői díj","Útravaló","Átdolgozás, töredékdíj","Indexálás visszavonása","Útravaló díj","Színkódok","Adatok","Változáskövetés","Flotta adatközlő","Jogtárs engedély","Jogtárs egyedi díj","MZ Adatok","Adatváltozás nyomtatványok"],"not_rendered":{"charts":0,"images":6,"macros":1,"external_links":1,"defined_names":32,"comments":5,"pivot_tables":0},"unopened":[],"bounds":{"document_bytes":16777216,"sheet_cells":100000,"rows_first":2000,"rows_last":500,"rows_between":2000,"halvings":0,"cell_chars":16384,"cell_head_chars":4096},"cells_cut":0,"cells_raw":0,"read":"whole","date_system":"1900"}

{"sheet":"TARIFÁLÓ","index":0,"n_rows":1,"n_cols":15,"rows_kept":1,"cut":false,"hidden":false,"merged":[[0,1,0,8],[0,9,0,12],[0,0,52,0],[0,14,52,14]]}
[" MERT JOGÁBAN ÁLL    MERT JOGÁBAN ÁLL","               Üdvözöllek a tarifáló programban, a mai dátum:",null,null,null,null,null,null,null,{"$f":"TODAY()","v":"2019-12-12"},null,null,null,null," MERT JOGÁBAN ÁLL    MERT JOGÁBAN ÁLL"]

{"sheet":"Családi","index":1,"n_rows":9,"n_cols":11,"rows_kept":9,"cut":false,"hidden":true,"merged":[[1,0,1,1],[3,6,5,6],[8,3,10,3],[8,4,10,4],[3,5,5,5],[8,0,10,0]]}
[]
["Családi"]
[]
["Termék","Fizetési mód","Fizetési gyakoriság","HÍD","HÍD további gépjármű darabszám","Családi + Híd éves díj","Összes fizetendő éves díj","Gyakoriság szerint fizetendő díj"]
["Standard Classic","Csoportos","Féléves","Nem",0,null,null,{"$f":"+IF(AND(C5=Adatok!E7,NOT(B5=Adatok!C4)),\"Havi csak CSOB-osan köthető!!!\",A7*B7*C7*VLOOKUP(C5,Adatok!E4:G7,3,FALSE)+IF(D9=\"A Standard Classic mellé nem lehet Híd csomagot kötni.\",0,D9)*VLOOKUP(C5,Adatok!E4:G7,3,FALSE)+IF(E9=\"A Standard Classic mellé nem lehet Híd csomagot kötni.\",0,IF(D5=\"Igen\",E9,0))*VLOOKUP(C5,Adatok!E4:G7,3,FALSE))","v":30450},null,null,"\u0080"]
["Családi éves díj","Szorzó","Szorzó","Híd éves díj","Éves díj/darab",null,null,"Első díj"]
[{"$f":"+VLOOKUP(A5,Adatok!A4:B6,2,FALSE)","v":58000},{"$f":"+VLOOKUP(B5,Adatok!C4:D6,2,FALSE)","v":1},{"$f":"+VLOOKUP(C5,Adatok!E4:F7,2,FALSE)","v":1.05},50000,"16 000 Ft/további gépjármű",{"$f":"+A7+IF(A5=\"Standard Classic\",0,IF(D5=\"Igen\",D7+E5*16000,0))","v":58000},{"$f":"+IF(H5=\"Havi csak CSOB-osan köthető!!!\",\"Havi csak CSOB-osan köthető!!!\",H5*VLOOKUP(C5,Adatok!E4:H7,4,FALSE))","v":60900},{"$f":"+IF(H5=\"Havi csak CSOB-osan köthető!!!\",\"Havi csak CSOB-osan köthető!!!\",H5*VLOOKUP(C5,Adatok!E4:I7,5,FALSE))","v":30450}]
["Családi fizetendő éves díj",null,null,"Híd fizetendő éves díj","További jármű fizetendő éves díj"]
[{"$f":"+A7*B7*C7","v":60900},null,null,{"$f":"IF(A5=\"Standard Classic\",\"A Standard Classic mellé nem lehet Híd csomagot kötni.\",IF(NOT(ISBLANK(D5)),VLOOKUP(D5,Adatok!J4:K5,2,FALSE),0)*VLOOKUP(C5,Adatok!E4:G7,2,FALSE)*VLOOKUP(B5,Adatok!C4:D6,2,FALSE))","v":"A Standard Classic mellé nem lehet Híd csomagot kötni."},{"$f":"IF(A5=\"Standard Classic\",\"A Standard Classic mellé nem lehet Híd csomagot kötni.\",IF(NOT(ISBLANK(E5)),E5*Adatok!L4,0)*VLOOKUP(C5,Adatok!E4:G7,2,FALSE)*VLOOKUP(B5,Adatok!C4:D6,2,FALSE))","v":"A Standard Classic mellé nem lehet Híd csomagot kötni."}]

{"sheet":"Családi díj","index":2,"n_rows":48,"n_cols":7,"rows_kept":48,"cut":false,"hidden":true,"merged":[[31,1,31,4],[32,1,32,4],[33,1,33,4],[34,1,34,4],[29,1,29,4],[30,1,30,4],[8,9,9,11],[11,9,12,11],[14,9,15,11],[18,1,18,2],[17,1,17,2],[16,1,16,2],[19,1,19,2],[25,0,25,6],[16,3,16,5],[20,2,20,3],[28,1,28,4],[27,1,27,4],[47,0,52,6],[35,0,35,2],[36,0,36,2],[37,0,37,2],[40,2,40,5],[46,0,46,1],[43,1,43,6],[0,0,3,0],[9,0,9,6],[12,1,12,6],[13,1,13,6],[14,1,14,6],[38,9,39,11],[20,9,21,11],[17,9,18,11],[23,9,24,11],[26,9,27,11],[32,9,33,11],[35,9,36,11]]}
["D.A.S. Jogvédelmi Biztosító Zrt.\n1082 Budapest, Futó utca 47-53.\nTel.: +36 1 486 3600\ninfo@das.hu - www.das.hu"]
[]
[]
[]
[]
[]
[]
[]
[]
["CSALÁDI JOGVÉDELM INDÍKATÍV AJÁNLAT MAGÁNSZEMÉLY RÉSZÉRE"]
[]
["Ajánlatkérés adatai:"]
["Ügyfél neve"]
["Állandó lakcíme"]
["Telefonszáma"]
["Emailcíme"]
["Választott csomag",{"$f":"IF(Családi!A5=\"standard classic\",\"Standard classic\",IF(Családi!A5=\"Médium classic\",\"Médium classic\",IF(Családi!A5=\"Prémium classic\",\"Prémium classic\")))","v":"Standard classic"},null,{"$f":"IF(B17=\"Standard classic\",\"2.400.000Ft/kár, 4.800.000Ft/év, 4.800.000Ft óvadék\",IF(B17=\"Médium classic\",\"3.700.000Ft/kár, 7.400.000Ft/év, 7.400.000Ft óvadék\",IF(B17=\"Prémium classic\",\"5.000.000Ft/kár, 10.000.000Ft/év, 10.000.000Ft óvadék\")))","v":"2.400.000Ft/kár, 4.800.000Ft/év, 4.800.000Ft óvadék"},null,null,"Szolgáltatási limit"]
["Fizetési mód",{"$f":"IF(Családi!B5=\"Csoportos\",\"Csoportos\",IF(Családi!B5=\"Átutalásos\",\"Átutalásos\",IF(Családi!B5=\"Csekkes\",\"Csekkes\")))","v":"Csoportos"}]
["Fizetési gyakoriság",{"$f":"IF(Családi!C5=\"Éves\",\"Éves\",IF(Családi!C5=\"Féléves\",\"Féléves\",IF(Családi!C5=\"Negyedéves\",\"Negyedéves\",IF(Családi!C5=\"Havi\",\"Havi\"))))","v":"Féléves"}]
["Híd ",{"$f":"IF(Családi!A5=\"Standard classic\",\"\",IF(Családi!D5=\"igen\",\"Igen\",\"Nem\"))","v":""}]
["Híd további gépjármű darabszám",{"$f":"IF(Családi!A5=\"standard classic\",0,IF(Családi!D5=\"igen\",Családi!E5,0))","v":0},{"$f":"IF(Családi!A5=\"standard classic\",\"\",IF(Családi!D5=\"igen\",Családi!E7,\"\"))","v":""}]
[]
[]
[]
[]
["SZÁMÍTOTT DÍJ"]
[]
["Családi éves díj",{"$f":"Családi!A7","v":58000}]
["Családi fizetendő éves díj",{"$f":"Családi!A9","v":60900}]
["Híd éves díj",{"$f":"IF(Családi!A5=\"Standard classic\",0,Családi!D7)","v":0}]
["Híd fizetendő éves díj",{"$f":"Családi!D9","v":"A Standard Classic mellé nem lehet Híd csomagot kötni."}]
["Híd további jármű éves díj",{"$f":"Családi!E9","v":"A Standard Classic mellé nem lehet Híd csomagot kötni."}]
["Családi + Híd éves díj",{"$f":"Családi!F7","v":58000}]
["Összes fizetendő éves díj",{"$f":"Családi!G7","v":60900}]
["Gyakoriság szerint fizetendő díj",{"$f":"Családi!H5","v":30450}]
[]
[]
[]
[]
[]
["Díjajánlat kiadva: ",{"$f":"TODAY()","v":"2019-12-12"}]
[]
[]
["Bizosításközvetítő neve: "]
[]
[]
["Figyelem:"]
["Felhívjuk szíves figyelmét, hogy jelen ajánlatunk indikatív jellegű, további tárgyalások alapjául szolgál, és nem jelent szerződéskötési kötelezettségvállalást a D.A.S. JogSzerviz részéről. Az alábbiakban ismertetett konstrukciókat a Társaságukról jelenleg rendelkezésünkre álló információk alapján, meghatározott feltételek fennállása esetén ajánljuk. Ajánlatunk a kiadástól számított 30 napig szolgál a köztünk lévő tárgyalás alapjának."]

{"sheet":"VIP","index":3,"n_rows":9,"n_cols":8,"rows_kept":9,"cut":false,"hidden":true,"merged":[[3,5,5,5],[3,6,5,6],[3,8,4,8]]}
[]
["VIP"]
[]
["Termék","Fizetési mód","Fizetési gyakoriság","HÍD","HÍD további gépjármű darabszám","VIP + Híd éves díj","Összes fizetendő éves díj","Gyakoriság szerint fizetendő díj"]
["VIP Standard","Csekkes","Negyedéves","Nem",0,null,null,{"$f":"+IF(AND(C5=Adatok!E7,NOT(B5=Adatok!C4)),\"Havi csak CSOB-osan köthető!!!\",A7*B7*C7*VLOOKUP(C5,Adatok!E4:G7,3,FALSE)+D9*VLOOKUP(C5,Adatok!E4:G7,3,FALSE)+IF(D5=\"Nem\",0,E9)*VLOOKUP(C5,Adatok!E4:G7,3,FALSE))","v":42224.875}]
["VIP éves díj","Szorzó","Szorzó","Híd éves díj","Éves díj/darab",null,null,"Első díj"]
[{"$f":"+VLOOKUP(A5,Adatok!A7:B9,2,FALSE)","v":154000},{"$f":"+VLOOKUP(B5,Adatok!C4:D6,2,FALSE)","v":1.0249999999999999},{"$f":"+VLOOKUP(C5,Adatok!E4:F7,2,FALSE)","v":1.07},50000,"16 000 Ft/további gépjármű",{"$f":"+A7+IF(D5=\"Nem\",0,IF(D5=\"Igen\",D7+E5*16000,0))","v":154000},{"$f":"+A9+D9+IF(D5=\"Nem\",0,E9)","v":168899.5},{"$f":"+IF(H5=\"Havi csak CSOB-osan köthető!!!\",\"Havi csak CSOB-osan köthető!!!\",H5*VLOOKUP(C5,Adatok!E4:I7,5,FALSE))","v":42224.875}]
["VIP fizetendő éves díj",null,null,"Híd fizetendő éves díj","További jármű fizetendő éves díj"]
[{"$f":"+A7*B7*C7","v":168899.5},null,null,{"$f":"IF(NOT(ISBLANK(D5)),VLOOKUP(D5,Adatok!J4:K5,2,FALSE),0)*VLOOKUP(C5,Adatok!E4:F7,2,FALSE)*VLOOKUP(B5,Adatok!C4:D6,2,FALSE)","v":0},{"$f":"+IF(NOT(ISBLANK(E5)),E5*Adatok!L4,0)*VLOOKUP(C5,Adatok!E4:F7,2,FALSE)*VLOOKUP(B5,Adatok!C4:D6,2,FALSE)","v":0}]

{"sheet":"Jogtárs","index":4,"n_rows":13,"n_cols":8,"rows_kept":13,"cut":false,"hidden":true,"merged":[[12,0,13,0],[5,4,6,5]]}
[]
["Jogtárs"]
[]
["Szerződő","Csomag","Fizetési mód","Fizetési gyakoriság","Alkalmazottak létszáma","Éves összes bevétel","Jogtárs éves díja","Ingatlan "]
["Vállalkozás","Standard","Csoportos","Negyedéves",0,0,{"$f":"IF(A5=\"Társasház\",A12,IF(AND(E5=0,F5=0),0,IF(A5=\"Vállalkozás\",IF(OR(E6=\"Egyedi ajánlatkérés szükséges\",F6=\"Egyedi ajánlatkérés szükséges\"),0,IF(B5=\"Standard\",INDEX(Adatok!H25:K28,VLOOKUP($E$5,Adatok!G31:I34,3,TRUE),VLOOKUP($F$5,Adatok!G36:I39,3,TRUE)),INDEX(Adatok!N25:Q28,VLOOKUP($E$5,Adatok!G31:I34,3,TRUE),VLOOKUP($F$5,Adatok!G36:I39,3,TRUE)))),A12)))","v":0},0]
[null,null,null,"Szorzó",{"$f":"+IF(OR(E5>249,F5>3000000000),\"Egyedi ajánlatkérés szükséges\",\"\")","v":""},null,null,"Ingatlan kiegészítő éves díja"]
["Társasház hasznos alapterülete nm-ben",null,null,{"$f":"+VLOOKUP(D5,Adatok!E4:F7,2,FALSE)","v":1.07},null,null,null,{"$f":"+IF(B5=\"Prémium\",62000,41000)&\" Ft\"&\"/ingatlan\"","v":"41000 Ft/ingatlan"}]
[0,null,null,null,null,null,null,"Ingatlan éves díja"]
["Éves díj",null,null,null,null,null,null,{"$f":"+IF(E6=\"Egyedi ajánlatkérés szükséges\",0,H5*+IF(B5=\"Prémium\",62000,41000))","v":0}]
[{"$f":"+IF(B5=\"Prémium\",100,68)&\" Ft\"&\"/nm\"","v":"68 Ft/nm"}]
["Társasház éves díja",null,null,"Összes éves díj","Összes fizetendő éves díj","Gyakoriság szerint fizetendő díj","Első díj"]
[{"$f":"+MAX(A8*IF(B5=\"Standard\",68,100),IF(B5=\"Standard\",68000,100000))","v":68000},null,null,{"$f":"IF(A5=\"Társasház\",A12,IF(AND(E5=0,F5=0),0,IF(A5=\"Vállalkozás\",IF(OR(E6=\"Egyedi ajánlatkérés szükséges\",F6=\"Egyedi ajánlatkérés szükséges\"),0,IF(B5=\"Standard\",INDEX(Adatok!H25:K28,VLOOKUP($E$5,Adatok!G31:I34,3,TRUE),VLOOKUP($F$5,Adatok!G36:I39,3,TRUE)),INDEX(Adatok!N25:Q28,VLOOKUP($E$5,Adatok!G31:I34,3,TRUE),VLOOKUP($F$5,Adatok!G36:I39,3,TRUE)))+H9),A12)))","v":0},{"$f":"+D12*$D$7","v":0},{"$f":"+E12*VLOOKUP(D5,Adatok!E4:G7,3)","v":0},{"$f":"+F12","v":0}]
[{"$f":"+IF(AND(AND($A$5=\"Társasház\",$B$5=\"Prémium\"),A8*100<100000),\"A minimum díj 100 000 Ft\",(IF(AND(AND($A$5=\"Társasház\",$B$5=\"Standard\"),A8*68<68000),\"A minimum díj 68 000 Ft\",\"\")))","v":""}]

{"sheet":"Jogtárs díj","index":5,"n_rows":48,"n_cols":6,"rows_kept":48,"cut":false,"hidden":true,"merged":[[37,5,37,9],[41,4,41,14],[44,2,44,14],[18,0,18,1],[47,0,50,14],[23,2,23,3],[31,0,31,2],[41,2,41,3],[44,0,44,1],[46,0,46,1],[41,0,41,1],[37,0,37,2],[36,0,36,2],[34,0,34,2],[33,5,33,9],[32,0,32,2],[34,5,34,9],[36,5,36,9],[33,0,33,2],[10,17,11,19],[9,0,9,3],[10,0,10,1],[14,0,14,1],[23,0,23,1],[31,5,31,9],[11,0,11,1],[11,2,11,14],[12,2,12,14],[13,2,13,14],[14,2,14,14],[12,0,12,1],[32,5,32,9],[21,2,21,3],[22,0,22,1],[22,2,22,3],[0,0,2,3],[6,0,6,14],[10,2,10,14],[13,0,13,1],[19,0,19,1],[19,2,19,3],[35,0,35,2],[35,5,35,9],[13,17,14,19],[16,17,17,19],[19,17,20,19],[22,17,23,19],[25,17,26,19],[30,5,30,9],[28,0,28,14],[24,0,24,1],[24,2,24,3],[32,3,32,4],[30,0,30,2],[20,0,20,1],[20,2,20,3],[21,0,21,1]]}
["D.A.S. Jogvédelmi Biztosító Zrt.\n1082 Budapest, Futó utca 47-53.\nTel.: +36 1 486 3600\ninfo@das.hu - www.das.hu"]
[]
[]
[]
[]
[]
[{"$f":"IF(Jogtárs!A5=\"vállalkozás\",\"JOGTÁRS INDIKATÍV DÍJAJÁNLAT VÁLLALKOZÁSOKNAK\",\"JOGTÁRS INDIKATÍV DÍJAJÁNLAT TÁRSASHÁZAKNAK\")","v":"JOGTÁRS INDIKATÍV DÍJAJÁNLAT VÁLLALKOZÁSOKNAK"}]
[]
[]
[{"$f":"IF(Jogtárs!A5=\"vállalkozás\",\"Ajánlatkérő cég adatai:\",\"Ajánlatkérő társasház adatai\")","v":"Ajánlatkérő cég adatai:"}]
[{"$f":"IF(Jogtárs!A5=\"vállalkozás\",\"Cég neve:\",\"Társasház neve\")","v":"Cég neve:"}]
[{"$f":"IF(Jogtárs!A5=\"vállalkozás\",\"Cég székhelye\",\"Társasház címe\")","v":"Cég székhelye"}]
[{"$f":"IF(Jogtárs!A5=\"vállalkozás\",\"Cég Adószáma\",\"Közös képviselő neve\")","v":"Cég Adószáma"}]
[{"$f":"IF(Jogtárs!A5=\"vállalkozás\",\"Tevékenység TEÁOR\",\"Közös képviselő telefonja\")","v":"Tevékenység TEÁOR"}]
[{"$f":"IF(Jogtárs!A6=\"vállalkozás\",\"Email cím\",\"Email cím\")","v":"Email cím"}]
[]
[]
[]
["Számításhoz adatok:"]
[{"$f":"IF(Jogtárs!A5=\"vállalkozás\",\"Éves árbevétel:\",\"Hasznos alapterület\")","v":"Éves árbevétel:"},null,{"$f":"IF(Jogtárs!A5=\"vállalkozás\",Jogtárs!F5,Jogtárs!A8)","v":0},null,{"$f":"IF(Jogtárs!A5=\"vállalkozás\",\"Ft\",\"nm\")","v":"Ft"}]
[{"$f":"IF(Jogtárs!A5=\"vállalkozás\",\"Dolgozói létszám:\",\"Választott csomag\")","v":"Dolgozói létszám:"},null,{"$f":"IF(Jogtárs!A5=\"vállalkozás\",Jogtárs!E5,Jogtárs!B5)","v":0},null,{"$f":"IF(Jogtárs!A5=\"társasház\",Jogtárs!A10,\"fő\")","v":"fő"}]
[{"$f":"IF(Jogtárs!A5=\"vállalkozás\",\"Ingatlanok db száma\",\"Díjfizetési gyakoriság\")","v":"Ingatlanok db száma"},null,{"$f":"IF(Jogtárs!A5=\"vállalkozás\",Jogtárs!H5,Jogtárs!D5)","v":0},null,{"$f":"IF(Jogtárs!A5=\"vállalkozás\",\"db\",\"\")","v":"db"}]
[{"$f":"IF(Jogtárs!A5=\"vállalkozás\",\"Választott csomag\",\"Díjfizetési mód\")","v":"Választott csomag"},null,{"$f":"IF(Jogtárs!A5=\"vállalkozás\",Jogtárs!B5,Jogtárs!C5)","v":"Standard"}]
[{"$f":"IF(Jogtárs!A5=\"vállalkozás\",\"Díjfizetési gyakoriság\",\"\")","v":"Díjfizetési gyakoriság"},null,{"$f":"IF(Jogtárs!A5=\"vállalkozás\",Jogtárs!D5,\"\")","v":"Negyedéves"}]
[{"$f":"IF(Jogtárs!A5=\"vállalkozás\",\"Díjfizetési mód\",\"\")","v":"Díjfizetési mód"},null,{"$f":"IF(Jogtárs!A5=\"vállalkozás\",Jogtárs!C5,\"\")","v":"Csoportos"}]
[]
[]
[]
["SZÁMÍTOTT DÍJ"]
[]
["Biztosítási Összeg ",null,null,null,null,{"$f":"IF(Jogtárs!B5=\"standard\",\"5 000 000 Ft/esemény/év\",\"10 000 000 Ft/esemény/év\")","v":"5 000 000 Ft/esemény/év"}]
[{"$f":"IF(Jogtárs!A5=\"vállalkozás\",\"Alap díj (ingatlan nélkül)\",\"Társasház éves díja\")","v":"Alap díj (ingatlan nélkül)"},null,null,null,null,{"$f":"IF(Jogtárs!A5=\"vállalkozás\",Jogtárs!G5,Jogtárs!A12)","v":0}]
[{"$f":"IF(Jogtárs!A5=\"vállalkozás\",\"Ingatlan jog éves díj/ingatlan\",\"Összes fizetendő éves díj\")","v":"Ingatlan jog éves díj/ingatlan"},null,null,null,null,{"$f":"IF(Jogtárs!A5=\"vállalkozás\",Jogtárs!H7,Jogtárs!E12)","v":"41000 Ft/ingatlan"}]
[{"$f":"IF(Jogtárs!A5=\"vállalkozás\",\"\",\"Gyakoriság szerint fizetendő díj\")","v":""},null,null,null,null,{"$f":"IF(Jogtárs!A5=\"vállalkozás\",\"\",Jogtárs!F12)","v":""}]
[{"$f":"IF(Jogtárs!A5=\"vállalkozás\",\"Összes éves díj (alap+ingatlan)\",\"\")","v":"Összes éves díj (alap+ingatlan)"},null,null,null,null,{"$f":"IF(Jogtárs!A5=\"vállalkozás\",Jogtárs!D12,\"\")","v":0}]
[{"$f":"IF(Jogtárs!A5=\"vállalkozás\",\"Összes fizetendő éves díj\",\"\")","v":"Összes fizetendő éves díj"},null,null,null,null,{"$f":"IF(Jogtárs!A5=\"vállalkozás\",Jogtárs!E12,\"\")","v":0}]
[{"$f":"IF(Jogtárs!A5=\"vállalkozás\",\"Ebből az ingatlan\",\"\")","v":"Ebből az ingatlan"},null,null,null,null,{"$f":"IF(Jogtárs!A5=\"vállalkozás\",Jogtárs!H9,\"\")","v":0}]
[{"$f":"IF(Jogtárs!A5=\"vállalkozás\",\"Gyakoriság szerint fizetendő díj\",\"\")","v":"Gyakoriság szerint fizetendő díj"},null,null,null,null,{"$f":"IF(Jogtárs!A5=\"vállalkozás\",Jogtárs!F12,\"\")","v":0}]
[]
[]
[]
["Díjajánlat kiadva: ",null,{"$f":"TODAY()","v":"2019-12-12"}]
[]
[]
["Biztosításközvetítő neve: "]
[]
["Figyelem:"]
["Felhívjuk szíves figyelmét, hogy jelen ajánlatunk indikatív jellegű, további tárgyalások alapjául szolgál, és nem jelent szerződéskötési kötelezettségvállalást a D.A.S. JogSzerviz részéről. Az alábbiakban ismertetett konstrukciókat a Társaságukról jelenleg rendelkezésünkre álló információk alapján, meghatározott feltételek fennállása esetén ajánljuk. Ajánlatunk a kiadástól számított 30 napig szolgál a köztünk lévő tárgyalás alapjának."]

{"sheet":"VIP díj","index":6,"n_rows":48,"n_cols":7,"rows_kept":48,"cut":false,"hidden":true,"merged":[[47,0,52,6],[40,2,40,3],[43,1,43,6],[16,1,16,2],[17,1,17,2],[18,1,18,2],[19,1,19,2],[25,0,25,6],[20,2,20,3],[18,3,18,4],[16,3,16,5],[17,3,17,5],[27,0,27,1],[28,0,28,1],[28,2,28,3],[46,0,46,1],[34,2,34,3],[35,0,35,2],[36,0,36,2],[30,0,30,1],[31,0,31,1],[32,0,32,1],[32,2,32,3],[10,9,11,11],[13,9,14,11],[16,9,17,11],[19,9,20,11],[0,0,3,0],[13,1,13,6],[14,1,14,6],[9,0,9,6],[12,1,12,6],[37,9,38,11],[15,1,15,6],[28,9,29,11],[40,9,41,11],[22,9,23,11],[25,9,26,11],[34,9,35,11],[29,0,29,1],[29,2,29,3],[30,2,30,3],[31,2,31,3],[27,2,27,3],[37,0,37,2],[33,0,33,1],[33,2,33,3],[34,0,34,1]]}
["D.A.S. Jogvédelmi Biztosító Zrt.\n1082 Budapest, Futó utca 47-53.\nTel.: +36 1 486 3600\ninfo@das.hu - www.das.hu"]
[]
[]
[]
[]
[]
[]
[]
[]
["CSALÁDI VIP JOGVÉDELM INDÍKATÍV AJÁNLAT MAGÁNSZEMÉLY RÉSZÉRE"]
[]
["Ajánlatkérés adatai:"]
["Ügyfél neve"]
["Állandó lakcíme"]
["Telefonszáma"]
["Emailcíme"]
["Választott csomag",{"$f":"IF(VIP!A5=\"Vip standard\",\"Vip standard\",IF(VIP!A5=\"Vip médium\",\"Vip médium\",IF(VIP!A5=\"Vip prémium\",\"Vip prémium\")))","v":"Vip standard"},null,{"$f":"IF(B17=\"Vip standard\",\"10.000.000Ft/kár/év, 20.000.000Ft óvadék\",IF(B17=\"Vip médium\",\"10.000.000Ft/kár/év, 20.000.000Ft óvadék\",IF(B17=\"Vip Prémium\",\"15.000.000Ft/kár/év, 30.000.000Ft óvadék\")))","v":"10.000.000Ft/kár/év, 20.000.000Ft óvadék"},null,null,"Szolgáltatási limit"]
["Fizetési mód",{"$f":"IF(VIP!B5=\"Csoportos\",\"Csoportos\",IF(VIP!B5=\"Átutalásos\",\"Átutalásos\",IF(VIP!B5=\"Csekkes\",\"Csekkes\")))","v":"Csekkes"}]
["Fizetési gyakoriság",{"$f":"IF(VIP!C5=\"Éves\",\"Éves\",IF(VIP!C5=\"Féléves\",\"Féléves\",IF(VIP!C5=\"Negyedéves\",\"Negyedéves\")))","v":"Negyedéves"}]
["Híd ",{"$f":"IF(VIP!A5=\"Standard classic\",\"\",IF(VIP!D5=\"igen\",\"Igen\",\"Nem\"))","v":"Nem"}]
["Híd további gépjármű darabszám",{"$f":"IF(VIP!D5=\"igen\",VIP!E5,0)","v":0},{"$f":"'Családi díj'!B21:C21","v":""}]
[]
[]
[]
[]
["SZÁMÍTOTT DÍJ"]
[]
["VIP éves díj",null,{"$f":"VIP!A7","v":154000}]
["VIP fizetendő éves díj",null,{"$f":"VIP!A9","v":168899.5}]
["Híd éves díj",null,{"$f":"IF(VIP!D5=\"igen\",VIP!D7,\"\")","v":""}]
["Híd fizetendő éves díj",null,{"$f":"IF(VIP!D5=\"igen\",VIP!D9,\"\")","v":""}]
["Híd további jármű éves díj",null,{"$f":"IF(VIP!D5=\"igen\",VIP!E9,\"\")","v":""}]
["VIP + Híd éves díj",null,{"$f":"VIP!F7","v":154000}]
["Összes fizetendő éves díj",null,{"$f":"VIP!G7","v":168899.5}]
["Gyakoriság szerint fizetendő díj",null,{"$f":"VIP!H5","v":42224.875}]
[]
[]
[]
[]
[]
["Díjajánlat kiadva: ",{"$f":"TODAY()","v":"2019-12-12"}]
[]
[]
["Bizosításközvetítő neve: "]
[]
[]
["Figyelem:"]
["Felhívjuk szíves figyelmét, hogy jelen ajánlatunk indikatív jellegű, további tárgyalások alapjául szolgál, és nem jelent szerződéskötési kötelezettségvállalást a D.A.S. JogSzerviz részéről. Az alábbiakban ismertetett konstrukciókat a Társaságukról jelenleg rendelkezésünkre álló információk alapján, meghatározott feltételek fennállása esetén ajánljuk. Ajánlatunk a kiadástól számított 30 napig szolgál a köztünk lévő tárgyalás alapjának."]

{"sheet":"Gépjárművezetői","index":7,"n_rows":9,"n_cols":7,"rows_kept":9,"cut":false,"hidden":true,"merged":[[3,5,4,6]]}
[]
["Gépjárművezetői"]
[]
["Szerződő","Biztosított jogosítványok darabszáma","Fizetési mód","Fizetési gyakoriság",null,{"$f":"+IF(G7<10000,\"A Gyakoriság szerint fizetendő díj nem lehet 10.000 Forint alatt!\",\"\")","v":"A Gyakoriság szerint fizetendő díj nem lehet 10.000 Forint alatt!"}]
["NEM magánszemély",0,"Csoportos","Negyedéves"]
["Éves díj","Szorzó","Szorzó","Szorzó",null,"Fizetendő éves díj","Gyakoriság szerint fizetendő díj"]
[{"$f":"+VLOOKUP(A5,Adatok!N4:O5,2,FALSE)*B7","v":0},{"$f":"B5","v":0},{"$f":"+VLOOKUP(C5,Adatok!C4:D6,2,FALSE)","v":1},{"$f":"+VLOOKUP(D5,Adatok!E4:F7,2,FALSE)","v":1.07},{"$f":"+A7*C7*D7","v":0},{"$f":"+IF(G7=\"Havi csak CSOB-osan köthető!!!\",\"Havi csak CSOB-osan köthető!!!\",ROUND(G7*VLOOKUP(D5,Adatok!E4:H7,4,FALSE),0))","v":0},{"$f":"+IFERROR(IF(AND(D5=Adatok!E7,NOT(C5=Adatok!C4)),\"Havi csak CSOB-osan köthető!!!\",E7/B7/VLOOKUP(D5,Adatok!E4:H7,4,FALSE)*B7),0)","v":0}]
[null,null,null,null,null,null,"Első díj"]
[null,null,null,null,null,null,{"$f":"+IF(G7=\"Havi csak CSOB-osan köthető!!!\",\"Havi csak CSOB-osan köthető!!!\",G7*VLOOKUP(D5,Adatok!E4:I7,5,FALSE))","v":0}]

{"sheet":"Gépjárművezetői díj","index":8,"n_rows":49,"n_cols":4,"rows_kept":49,"cut":false,"hidden":true,"merged":[[21,9,22,11],[24,9,25,11],[27,9,28,11],[12,9,13,11],[15,9,16,11],[18,9,19,11],[47,0,47,1],[48,0,53,6],[30,0,30,1],[31,0,31,1],[32,0,32,1],[30,2,30,3],[31,2,31,3],[32,2,32,3],[41,2,41,5],[33,0,33,2],[36,0,36,2],[37,0,37,2],[38,0,38,2],[34,0,35,6],[44,1,44,6],[0,0,6,2],[28,0,28,6],[21,3,23,6],[12,0,12,6],[15,2,15,6],[16,2,16,6],[17,2,17,6],[18,2,18,6],[19,2,19,6],[20,2,20,6]]}
["D.A.S. Jogvédelmi Biztosító Zrt.\n1082 Budapest, Futó utca 47-53.\nTel.: +36 1 486 3600\ninfo@das.hu - www.das.hu"]
[]
[]
[]
[]
[]
[]
[]
[]
[]
[]
[]
[{"$f":"IF(Gépjárművezetői!A5=\"magánszemély\",\"GÉPJÁRMŰVEZETŐI INDIKATÍV ÁRAJÁNLAT MAGÁNSZEMÉLY RÉSZÉRE\",\"GÉPJÁRMŰVEZETŐI INDIKATÍV ÁRAJÁNLAT VÁLLALKOZÁS RÉSZÉRE\")","v":"GÉPJÁRMŰVEZETŐI INDIKATÍV ÁRAJÁNLAT VÁLLALKOZÁS RÉSZÉRE"}]
[]
["Ajánlatkérés adatai:"]
[{"$f":"IF(Gépjárművezetői!A5=\"Nem magánszemély\",\"Cég neve\",\"Ügyfél neve\")","v":"Cég neve"}]
[{"$f":"IF(Gépjárművezetői!A5=\"nem magánszemély\",\"Cég székhelye\",\"Ügyfél állandó címe\")","v":"Cég székhelye"}]
[{"$f":"IF(Gépjárművezetői!A5=\"nem magánszemély\",\"Cég adószáma\",\"Ügyfél telefonszáma\")","v":"Cég adószáma"}]
[{"$f":"IF(Gépjárművezetői!A5=\"nem magánszemély\",\"Kapcsolattartó neve\",\"Email cím\")","v":"Kapcsolattartó neve"}]
[{"$f":"IF(Gépjárművezetői!A5=\"nem magánszemély\",\"Kapcsolattartó telefonszáma\",\"\")","v":"Kapcsolattartó telefonszáma"}]
[{"$f":"IF(Gépjárművezetői!A5=\"nem magánszemély\",\"Email cím\",\"\")","v":"Email cím"}]
[{"$f":"IF(Gépjárművezetői!A5=\"nem magánszemély\",Gépjárművezetői!B4,Gépjárművezetői!B4)","v":"Biztosított jogosítványok darabszáma"},{"$f":"IF(Gépjárművezetői!A5=\"nem magánszemély\",Gépjárművezetői!B5,Gépjárművezetői!B5)","v":0},null,{"$f":"IF(Gépjárművezetői!A5=\"nem magánszemély\",Gépjárművezetői!F4,Gépjárművezetői!F4)","v":"A Gyakoriság szerint fizetendő díj nem lehet 10.000 Forint alatt!"}]
["Fizetési mód",{"$f":"IF(Gépjárművezetői!A5=\"nem magánszemély\",Gépjárművezetői!C5,Gépjárművezetői!C5)","v":"Csoportos"}]
["Fizetési gyakoriság",{"$f":"IF(Gépjárművezetői!A5=\"nem magánszemély\",Gépjárművezetői!D5,Gépjárművezetői!D5)","v":"Negyedéves"}]
[]
[]
[]
[]
["SZÁMÍTOTT DÍJ"]
[]
["Éves Díj",null,{"$f":"IF(Gépjárművezetői!A5=\"nem magánszemély\",Gépjárművezetői!A7,Gépjárművezetői!A7)","v":0}]
["Fizetendő éves díj",null,{"$f":"IF(Gépjárművezetői!A6=\"nem magánszemély\",Gépjárművezetői!F7,Gépjárművezetői!F7)","v":0}]
["Gyakoriság szerint fizetendő díj",null,{"$f":"IF(Gépjárművezetői!A7=\"nem magánszemély\",Gépjárművezetői!G7,Gépjárművezetői!G7)","v":0}]
[]
[{"$f":"IF(Gépjárművezetői!D5=\"havi\",\"Ha a fizetési gyakoriság havi, akkor a első fizetendő díj a gyakoriság szerinti díj kétszerese\",\"\")","v":""}]
[]
[]
[]
[]
[]
[]
["Díjajánlat kiadva: ",{"$f":"TODAY()","v":"2019-12-12"}]
[]
[]
["Bizosításközvetítő neve: "]
[]
[]
["Figyelem:"]
["Felhívjuk szíves figyelmét, hogy jelen ajánlatunk indikatív jellegű, további tárgyalások alapjául szolgál, és nem jelent szerződéskötési kötelezettségvállalást a D.A.S. JogSzerviz részéről. Az alábbiakban ismertetett konstrukciókat a Társaságukról jelenleg rendelkezésünkre álló információk alapján, meghatározott feltételek fennállása esetén ajánljuk. Ajánlatunk a kiadástól számított 30 napig szolgál a köztünk lévő tárgyalás alapjának."]

{"sheet":"Útravaló","index":9,"n_rows":40,"n_cols":14,"rows_kept":40,"cut":false,"hidden":true,"merged":[[1,8,2,10],[23,0,23,2],[4,9,4,10],[6,9,6,10],[3,9,3,10],[5,9,5,10]]}
[]
["Útravaló",null,null,null,null,null,null,null,{"$f":"+IF(C5=\"Éves\",\"\",IF(J5<10000,\"A Gyakoriság szerint fizetendő díj nem lehet 10.000 Forint alatt!\",\"\"))","v":"A Gyakoriság szerint fizetendő díj nem lehet 10.000 Forint alatt!"}]
[]
["Biztosított","Fizetési mód","Fizetési gyakoriság",null,null,null,null,null,"Összes fizetendő éves díj","Gyakoriság szerint fizetendő díj"]
["NEM magánszemély","Csoportos","Havi",null,null,null,null,null,{"$f":"+IF(J5=\"Havi csak CSOB-osan köthető!!!\",\"Havi csak CSOB-osan köthető!!!\",J5*VLOOKUP(C5,Adatok!E4:H7,4,FALSE))","v":0},{"$f":"IF(AND(C5=Adatok!E7,NOT(B5=Adatok!C4)),\"Havi csak CSOB-osan köthető!!!\",F7*VLOOKUP(C5,Adatok!E4:G7,3,FALSE))","v":0}]
["Éves díj","Szorzó","Szorzó",null,null,null,null,null,null,"Első díj"]
[{"$f":"+IF(A5=Adatok!N4,Útravaló!E24,IF(A5=Adatok!N5,Útravaló!M40,\"\"))","v":0},{"$f":"+VLOOKUP(B5,Adatok!C4:D6,2,FALSE)","v":1},{"$f":"+VLOOKUP(C5,Adatok!E4:F7,2,FALSE)","v":1.1200000000000001},null,null,{"$f":"+A7*B7*C7","v":0},null,null,null,{"$f":"+IF(J5=\"Havi csak CSOB-osan köthető!!!\",\"Havi csak CSOB-osan köthető!!!\",J5*VLOOKUP(C5,Adatok!E4:I7,5,FALSE))","v":0}]
[]
[]
[{"$f":"+Adatok!N4","v":"Magánszemély"},"Kód","Éves díj/darab","Darabszám","Éves díj","Éves díj","Fizetendő éves díj",null,"NEM Magánszemély","Kód","Éves díj/darab","Darabszám","Éves díj","Fizetendő éves díj"]
["Segédmotoros kerékpár és motorkerékpár 500 cm³ alatt",1111,{"$f":"+Adatok!B13","v":13000},2,{"$f":"+IF(D11>0,D11*VLOOKUP(A11,Adatok!$A$12:$B$24,2,FALSE),0)","v":26000},null,{"$f":"+E11*$B$7*$C$7","v":29120.000000000004},null,"Segédmotoros kerékpár és motorkerékpár 500 cm³ alatt",2111,{"$f":"+VLOOKUP(I11,Adatok!D13:E40,2,FALSE)","v":17000},null,{"$f":"+IF(L11>0,L11*VLOOKUP(I11,Adatok!D11:E40,2,FALSE),0)","v":0},{"$f":"+M11*$C$7*$B$7","v":0}]
["Motorkerékpár 500 cm³ felett",1112,{"$f":"+Adatok!B14","v":17000},null,{"$f":"+IF(D12>0,D12*VLOOKUP(A12,Adatok!$A$12:$B$24,2,FALSE),0)","v":0},null,{"$f":"+E12*$B$7*$C$7","v":0},null,"Motorkerékpár 500 cm³ felett",2112,{"$f":"+VLOOKUP(I12,Adatok!D14:E41,2,FALSE)","v":19000},null,{"$f":"+IF(L12>0,L12*VLOOKUP(I12,Adatok!D12:E41,2,FALSE),0)","v":0},0]
["Személygépkocsi 1500 cm³ alatt",1213,{"$f":"+Adatok!B15","v":20000},null,{"$f":"+IF(D13>0,D13*VLOOKUP(A13,Adatok!$A$12:$B$24,2,FALSE),0)","v":0},null,0,null,"Személygépkocsi 1500 cm³ alatt",2211,{"$f":"+VLOOKUP(I13,Adatok!D15:E42,2,FALSE)","v":19000},null,{"$f":"+IF(L13>0,L13*VLOOKUP(I13,Adatok!D13:E42,2,FALSE),0)","v":0},0]
["Személygépkocsi 1500 cm³ felett",1214,{"$f":"+Adatok!B16","v":25000},null,{"$f":"+IF(D14>0,D14*VLOOKUP(A14,Adatok!$A$12:$B$24,2,FALSE),0)","v":0},null,0,null,"Személygépkocsi 1500 cm³ felett",2212,{"$f":"+VLOOKUP(I14,Adatok!D16:E43,2,FALSE)","v":24000},null,{"$f":"+IF(L14>0,L14*VLOOKUP(I14,Adatok!D14:E43,2,FALSE),0)","v":0},0]
["Lakókocsi",1311,{"$f":"+Adatok!B17","v":17000},null,{"$f":"+IF(D15>0,D15*VLOOKUP(A15,Adatok!$A$12:$B$24,2,FALSE),0)","v":0},null,0,null,"Lakókocsi",2311,{"$f":"+VLOOKUP(I15,Adatok!D17:E44,2,FALSE)","v":24000},null,{"$f":"+IF(L15>0,L15*VLOOKUP(I15,Adatok!D15:E44,2,FALSE),0)","v":0},0]
["Tehergépkocsi 3,5 t teherbírás* alatt",1411,{"$f":"+Adatok!B18","v":27000},null,{"$f":"+IF(D16>0,D16*VLOOKUP(A16,Adatok!$A$12:$B$24,2,FALSE),0)","v":0},null,0,null,"Tehergépkocsi 3,5 t teherbírás alatt",2411,{"$f":"+VLOOKUP(I16,Adatok!D18:E45,2,FALSE)","v":30000},null,{"$f":"+IF(L16>0,L16*VLOOKUP(I16,Adatok!D16:E45,2,FALSE),0)","v":0},0]
["Tehergépkocsi 3,5 t - 12 t teherbírás* között",1412,{"$f":"+Adatok!B19","v":33000},2,{"$f":"+IF(D17>0,D17*VLOOKUP(A17,Adatok!$A$12:$B$24,2,FALSE),0)","v":66000},null,73920,null,"Tehergépkocsi 3,5 t - 12 t teherbírás között",2412,{"$f":"+VLOOKUP(I17,Adatok!D19:E46,2,FALSE)","v":37000},null,{"$f":"+IF(L17>0,L17*VLOOKUP(I17,Adatok!D17:E46,2,FALSE),0)","v":0},0]
["Személygépkocsi utánfutó",1511,{"$f":"+Adatok!B20","v":6500},null,{"$f":"+IF(D18>0,D18*VLOOKUP(A18,Adatok!$A$12:$B$24,2,FALSE),0)","v":0},null,{"$f":"+E18*$B$7*$C$7","v":0},null,"Tehergépkocsi 12 t teherbírás felett",2413,{"$f":"+VLOOKUP(I18,Adatok!D20:E47,2,FALSE)","v":50000},null,{"$f":"+IF(L18>0,L18*VLOOKUP(I18,Adatok!D18:E47,2,FALSE),0)","v":0},0]
["Lakókocsi utánfutó",1512,{"$f":"+Adatok!B21","v":8500},null,{"$f":"+IF(D19>0,D19*VLOOKUP(A19,Adatok!$A$12:$B$24,2,FALSE),0)","v":0},null,0,null,"Nyerges vontató",2414,{"$f":"+VLOOKUP(I19,Adatok!D21:E48,2,FALSE)","v":52000},null,{"$f":"+IF(L19>0,L19*VLOOKUP(I19,Adatok!D19:E48,2,FALSE),0)","v":0},0]
["Motorcsónak 100 KW teljesítmény alatt és scooter",1711,{"$f":"+Adatok!B22","v":20000},2,{"$f":"+IF(D20>0,D20*VLOOKUP(A20,Adatok!$A$12:$B$24,2,FALSE),0)","v":40000},null,44800.000000000007,null,"Személygépkocsi utánfutó",2511,{"$f":"+VLOOKUP(I20,Adatok!D22:E49,2,FALSE)","v":7500},null,{"$f":"+IF(L20>0,L20*VLOOKUP(I20,Adatok!D20:E49,2,FALSE),0)","v":0},0]
["Motorcsónak 100 KW -150 KW teljesítmény között",1712,{"$f":"+Adatok!B23","v":42000},null,{"$f":"+IF(D21>0,D21*VLOOKUP(A21,Adatok!$A$12:$B$24,2,FALSE),0)","v":0},null,0,null,"Lakókocsi utánfutó",2512,{"$f":"+VLOOKUP(I21,Adatok!D23:E50,2,FALSE)","v":12000},null,{"$f":"+IF(L21>0,L21*VLOOKUP(I21,Adatok!D21:E50,2,FALSE),0)","v":0},0]
["Rendszám nélküli mezőgazdasági és erdei jármű, traktor",1811,{"$f":"+Adatok!B24","v":8500},2,{"$f":"+IF(D22>0,D22*VLOOKUP(A22,Adatok!$A$12:$B$24,2,FALSE),0)","v":17000},null,19040,null,"Tehergépkocsi utánfutó",2513,{"$f":"+VLOOKUP(I22,Adatok!D24:E51,2,FALSE)","v":13000},null,{"$f":"+IF(L22>0,L22*VLOOKUP(I22,Adatok!D22:E51,2,FALSE),0)","v":0},0]
[null,null,null,null,null,null,null,null,"Nyerges vontató utánfutó",2514,{"$f":"+VLOOKUP(I23,Adatok!D25:E52,2,FALSE)","v":22000},null,{"$f":"+IF(L23>0,L23*VLOOKUP(I23,Adatok!D23:E52,2,FALSE),0)","v":0},0]
["Összesen",null,null,{"$f":"+SUM(D11:D22)","v":8},{"$f":"+SUM(E11:E22)","v":149000},{"$f":"+SUM(F11:F22)","v":0},166880,null,"Autóbusz 20 férőhelyig",2611,{"$f":"+VLOOKUP(I24,Adatok!D26:E53,2,FALSE)","v":34000},null,{"$f":"+IF(L24>0,L24*VLOOKUP(I24,Adatok!D24:E53,2,FALSE),0)","v":0},0]
[null,null,null,null,null,null,null,null,"Autóbusz 20 férőhely felett",2612,{"$f":"+VLOOKUP(I25,Adatok!D27:E54,2,FALSE)","v":73000},null,{"$f":"+IF(L25>0,L25*VLOOKUP(I25,Adatok!D25:E54,2,FALSE),0)","v":0},0]
[null,null,null,null,null,null,null,null,"Motorcsónak 100 KW teljesítmény alatt és scooter",2711,{"$f":"+VLOOKUP(I26,Adatok!D28:E55,2,FALSE)","v":27000},null,{"$f":"+IF(L26>0,L26*VLOOKUP(I26,Adatok!D26:E55,2,FALSE),0)","v":0},0]
[null,null,null,null,null,null,null,null,"Motorcsónak 100 KW - 150 KW teljesítmény között",2712,{"$f":"+VLOOKUP(I27,Adatok!D29:E56,2,FALSE)","v":80000},null,{"$f":"+IF(L27>0,L27*VLOOKUP(I27,Adatok!D27:E56,2,FALSE),0)","v":0},0]
[null,null,null,null,null,null,null,null,"Rendszám nélküli mezőgazdasági és erdei jármű, traktor",2811,{"$f":"+VLOOKUP(I28,Adatok!D30:E57,2,FALSE)","v":15000},null,{"$f":"+IF(L28>0,L28*VLOOKUP(I28,Adatok!D28:E57,2,FALSE),0)","v":0},0]
[null,null,null,null,null,null,null,null,"Taxi",2911,{"$f":"+VLOOKUP(I29,Adatok!D31:E58,2,FALSE)","v":68000},null,{"$f":"+IF(L29>0,L29*VLOOKUP(I29,Adatok!D29:E58,2,FALSE),0)","v":0},0]
[null,null,null,null,null,null,null,null,"Bérautó",2913,{"$f":"+VLOOKUP(I30,Adatok!D32:E59,2,FALSE)","v":37000},null,{"$f":"+IF(L30>0,L30*VLOOKUP(I30,Adatok!D30:E59,2,FALSE),0)","v":0},0]
[null,null,null,null,null,null,null,null,"Autós iskola motorkerékpárja (segédmotoros és cm³-től független)",2920,{"$f":"+VLOOKUP(I31,Adatok!D33:E60,2,FALSE)","v":17000},null,{"$f":"+IF(L31>0,L31*VLOOKUP(I31,Adatok!D31:E60,2,FALSE),0)","v":0},0]
[null,null,null,null,null,null,null,null,"Autós iskola személygépkocsija",2914,{"$f":"+VLOOKUP(I32,Adatok!D34:E61,2,FALSE)","v":41000},null,{"$f":"+IF(L32>0,L32*VLOOKUP(I32,Adatok!D32:E61,2,FALSE),0)","v":0},0]
[null,null,null,null,null,null,null,null,"Autós iskola tehergépkocsija",2915,{"$f":"+VLOOKUP(I33,Adatok!D35:E62,2,FALSE)","v":36000},null,{"$f":"+IF(L33>0,L33*VLOOKUP(I33,Adatok!D33:E62,2,FALSE),0)","v":0},0]
[null,null,null,null,null,null,null,null,"Autós iskola autóbusza (férőhelytől függetlenül)",2921,{"$f":"+VLOOKUP(I34,Adatok!D36:E63,2,FALSE)","v":52000},null,{"$f":"+IF(L34>0,L34*VLOOKUP(I34,Adatok!D34:E63,2,FALSE),0)","v":0},0]
[null,null,null,null,null,null,null,null,"Futárszolgálat személygépkocsija",2916,{"$f":"+VLOOKUP(I35,Adatok!D37:E64,2,FALSE)","v":36000},null,{"$f":"+IF(L35>0,L35*VLOOKUP(I35,Adatok!D35:E64,2,FALSE),0)","v":0},0]
[null,null,null,null,null,null,null,null,"Futárszolgálat motorkerékpárja",2917,{"$f":"+VLOOKUP(I36,Adatok!D38:E65,2,FALSE)","v":22000},null,{"$f":"+IF(L36>0,L36*VLOOKUP(I36,Adatok!D36:E65,2,FALSE),0)","v":0},0]
[null,null,null,null,null,null,null,null,"Futárszolgálat tehergépkocsija 3,5 t teherbírás alatt",2918,{"$f":"+VLOOKUP(I37,Adatok!D39:E66,2,FALSE)","v":36000},null,{"$f":"+IF(L37>0,L37*VLOOKUP(I37,Adatok!D37:E66,2,FALSE),0)","v":0},0]
[null,null,null,null,null,null,null,null,"Futárszolgálat tehergépkocsija 3,5 t - 12 t teherbírás között",2919,{"$f":"+VLOOKUP(I38,Adatok!D40:E67,2,FALSE)","v":44000},null,{"$f":"+IF(L38>0,L38*VLOOKUP(I38,Adatok!D38:E67,2,FALSE),0)","v":0},0]
[]
[null,null,null,null,null,null,null,null,"Összesen",null,null,{"$f":"+SUM(L11:L38)","v":0},{"$f":"+SUM(M11:M38)","v":0},0]

{"sheet":"Átdolgozás, töredékdíj","index":10,"n_rows":9,"n_cols":2,"rows_kept":9,"cut":false,"hidden":true,"merged":[[0,0,0,1]]}
["Ezzel azt lehet számolni, hogy ha megyzűnik egy szerződés, mekkora töredékdíjat kell fizetni ahhoz, hogy jogfolytonos legyen."]
[]
[]
["Előzmény szerz. Megszűnése","2015-03-30"]
["Új szerz. Kockázatviselés kezdete","2019-07-30"]
["Megszűnt szerződés fizetendő éves díja",66666666]
["Díj/nap",{"$f":"+ROUNDUP(B6/360,2)","v":185185.19}]
["nap",{"$f":"+B5-B4","v":1583}]
["Fizetendő",{"$f":"+B7*DAYS360(B4,B5,TRUE)","v":288888896.39999998}]

{"sheet":"Indexálás visszavonása","index":11,"n_rows":10,"n_cols":9,"rows_kept":10,"cut":false,"hidden":true,"merged":[[2,1,2,2],[2,7,2,8],[2,6,3,6],[2,5,3,5]]}
[]
["Indexálás visszavonása"]
[null,"Index visszavonás előtt",null,null,null,"Indexálás mértéke","Indexálás visszavonás utáni éves díj","Index visszavonás után"]
["Aktuális éves díj","Fizetési mód","Fizetési gyakoriság","HÍD","HÍD további gépjármű darabszám",null,null,"Fizetési mód","Fizetési gyakoriság"]
[45000000,"Csekkes","Éves","Nem",0,{"$f":"Adatok!H15","v":0.04},{"$f":"+ROUND(A5/(100%+F5),0)","v":43269231},"Átutalásos","Éves"]
["Aktuális fizetendő éves díj","Szorzó","Szorzó","Ár","Ár",null,null,"Szorzó","Szorzó"]
[{"$f":"+A5*B7*C7","v":46124999.999999993},{"$f":"+VLOOKUP(B5,Adatok!C4:D6,2,FALSE)","v":1.0249999999999999},{"$f":"+VLOOKUP(C5,Adatok!E4:F7,2,FALSE)","v":1},{"$f":"+ROUND(IF(NOT(ISBLANK(D5)),VLOOKUP(D5,Adatok!J4:K5,2,FALSE),0)*VLOOKUP(C5,Adatok!E5:F7,2,FALSE)*VLOOKUP(B5,Adatok!C4:D6,2,FALSE),0)","v":{"$error":"#N/A"}},{"$f":"+IF(NOT(ISBLANK(E5)),E5*Adatok!L4,0)*VLOOKUP(C5,Adatok!E5:F7,2,FALSE)*VLOOKUP(B5,Adatok!C4:D6,2,FALSE)","v":{"$error":"#N/A"}},null,null,{"$f":"+VLOOKUP(H5,Adatok!C4:D6,2,FALSE)","v":1.0249999999999999},{"$f":"+VLOOKUP(I5,Adatok!E4:F7,2,FALSE)","v":1}]
[]
[null,null,null,null,null,null,null,"Gyakoriság szerint fizetendő díj","Fizetendő éves díj"]
[null,null,null,null,null,null,null,{"$f":"+I10*VLOOKUP(C5,Adatok!E4:G7,3,FALSE)","v":44350961.774999999},{"$f":"+G5*H7*I7","v":44350961.774999999}]

{"sheet":"Útravaló díj","index":12,"n_rows":73,"n_cols":8,"rows_kept":73,"cut":false,"hidden":true,"merged":[[72,0,77,7],[33,0,33,2],[35,0,35,2],[41,0,41,2],[34,0,34,2],[38,0,38,2],[71,0,71,1],[57,0,57,2],[42,0,42,2],[43,0,43,2],[63,0,63,2],[66,2,66,4],[63,4,63,5],[64,1,64,2],[69,1,69,7],[64,4,64,5],[13,2,13,7],[17,2,17,7],[16,2,16,7],[51,0,51,2],[39,0,39,2],[40,0,40,2],[50,0,50,2],[45,0,45,2],[46,0,46,2],[47,0,47,2],[48,0,48,2],[31,0,31,2],[44,0,44,2],[14,2,14,7],[18,2,18,7],[19,3,22,7],[0,0,7,2],[10,0,10,7],[60,0,60,7],[25,0,25,7],[30,0,30,2],[49,0,49,2],[52,0,52,2],[53,0,53,2],[54,0,54,2],[55,0,55,2],[29,0,29,2],[59,0,59,2],[15,2,15,7],[32,0,32,2],[36,0,36,2],[37,0,37,2],[56,0,56,2],[32,10,33,12],[35,10,36,12],[17,10,18,12],[20,10,21,12],[23,10,24,12],[26,10,27,12],[29,10,30,12]]}
["D.A.S. Jogvédelmi Biztosító Zrt.\n1082 Budapest, Futó utca 47-53.\nTel.: +36 1 486 3600\ninfo@das.hu - www.das.hu"]
[]
[]
[]
[]
[]
[]
[]
[]
[]
[{"$f":"IF(Útravaló!A5=\"magánszemély\",\"ÚTRAVALÓ INDIKATÍV ÁRAJÁNLAT MAGÁNSZEMÉLY RÉSZÉRE\",\"ÚTRAVALÓ INDIKATÍV ÁRAJÁNLAT VÁLLALKOZÁS RÉSZÉRE\")","v":"ÚTRAVALÓ INDIKATÍV ÁRAJÁNLAT VÁLLALKOZÁS RÉSZÉRE"}]
[]
["Ajánlatkérés adatai:"]
[{"$f":"IF(Útravaló!A5=\"Nem magánszemély\",\"Cég neve\",\"Ügyfél neve\")","v":"Cég neve"}]
[{"$f":"IF(Útravaló!A5=\"nem magánszemély\",\"Cég székhelye\",\"Ügyfél állandó címe\")","v":"Cég székhelye"}]
[{"$f":"IF(Útravaló!A5=\"nem magánszemély\",\"Cég adószáma\",\"Ügyfél telefonszáma\")","v":"Cég adószáma"}]
[{"$f":"IF(Útravaló!A5=\"nem magánszemély\",\"Kapcsolattartó neve\",\"Email cím\")","v":"Kapcsolattartó neve"}]
[{"$f":"IF(Útravaló!A5=\"nem magánszemély\",\"Kapcsolattartó telefonszáma\",\"\")","v":"Kapcsolattartó telefonszáma"}]
[{"$f":"IF(Útravaló!A5=\"nem magánszemély\",\"Email cím\",\"\")","v":"Email cím"}]
["Fizetési mód",{"$f":"IF(Útravaló!A5=\"nem magánszemély\",Útravaló!B5,Útravaló!B5)","v":"Csoportos"},null,{"$f":"+IF(Útravaló!C5=\"Éves\",\"\",IF(Útravaló!J5<10000,\"A Gyakoriság szerint fizetendő díj nem lehet 10.000 Forint alatt!\",\"\"))","v":"A Gyakoriság szerint fizetendő díj nem lehet 10.000 Forint alatt!"}]
["Fizetési gyakoriság",{"$f":"IF(Útravaló!A5=\"nem magánszemély\",Útravaló!C5,Útravaló!C5)","v":"Havi"}]
[]
[]
[]
[]
["GÉPJÁRMŰ ÖSSZESÍTÉS"]
[]
[]
[]
["Gépjármű típus",null,null,"Kód","Éves díj/darab","Darabszám","Éves díj","Fizetendő éves díj"]
["Segédmotoros kerékpár és motorkerékpár 500 cm³ alatt",null,null,{"$f":"IF(Útravaló!A5=\"nem magánszemély\",Útravaló!J11,Útravaló!B11)","v":2111},{"$f":"IF(Útravaló!A5=\"nem magánszemély\",Útravaló!K11,Útravaló!C11)","v":17000},{"$f":"IF(Útravaló!A5=\"nem magánszemély\",Útravaló!L11,Útravaló!D11)","v":0},{"$f":"IF(Útravaló!A5=\"nem magánszemély\",Útravaló!M11,Útravaló!E11)","v":0},{"$f":"IF(Útravaló!A5=\"nem magánszemély\",Útravaló!N11,Útravaló!G11)","v":0}]
["Motorkerékpár 500 cm³ felett",null,null,{"$f":"IF(Útravaló!A5=\"nem magánszemély\",Útravaló!J12,Útravaló!B12)","v":2112},{"$f":"IF(Útravaló!A5=\"nem magánszemély\",Útravaló!K12,Útravaló!C12)","v":19000},{"$f":"IF(Útravaló!A5=\"nem magánszemély\",Útravaló!L12,Útravaló!D12)","v":0},{"$f":"IF(Útravaló!A5=\"nem magánszemély\",Útravaló!M12,Útravaló!E12)","v":0},{"$f":"IF(Útravaló!A5=\"nem magánszemély\",Útravaló!N12,Útravaló!G12)","v":0}]
["Személygépkocsi 1500 cm³ alatt","Személygépkocsi 1500 cm³ alatt","Személygépkocsi 1500 cm³ alatt",{"$f":"IF(Útravaló!A5=\"nem magánszemély\",Útravaló!J13,Útravaló!B13)","v":2211},{"$f":"IF(Útravaló!A5=\"nem magánszemély\",Útravaló!K13,Útravaló!C13)","v":19000},{"$f":"IF(Útravaló!A5=\"nem magánszemély\",Útravaló!L13,Útravaló!D13)","v":0},{"$f":"IF(Útravaló!A5=\"nem magánszemély\",Útravaló!M13,Útravaló!E13)","v":0},{"$f":"IF(Útravaló!A5=\"nem magánszemély\",Útravaló!N13,Útravaló!G13)","v":0}]
["Személygépkocsi 1500 cm³ felett","Személygépkocsi 1500 cm³ felett","Személygépkocsi 1500 cm³ felett",{"$f":"IF(Útravaló!A5=\"nem magánszemély\",Útravaló!J14,Útravaló!B14)","v":2212},{"$f":"IF(Útravaló!A5=\"nem magánszemély\",Útravaló!K14,Útravaló!C14)","v":24000},{"$f":"IF(Útravaló!A5=\"nem magánszemély\",Útravaló!L14,Útravaló!D14)","v":0},{"$f":"IF(Útravaló!A5=\"nem magánszemély\",Útravaló!M14,Útravaló!E14)","v":0},{"$f":"IF(Útravaló!A5=\"nem magánszemély\",Útravaló!N14,Útravaló!G14)","v":0}]
["Lakókocsi","Lakókocsi","Lakókocsi",{"$f":"IF(Útravaló!A5=\"nem magánszemély\",Útravaló!J15,Útravaló!B15)","v":2311},{"$f":"IF(Útravaló!A5=\"nem magánszemély\",Útravaló!K15,Útravaló!C15)","v":24000},{"$f":"IF(Útravaló!A5=\"nem magánszemély\",Útravaló!L15,Útravaló!D15)","v":0},{"$f":"IF(Útravaló!A5=\"nem magánszemély\",Útravaló!M15,Útravaló!E15)","v":0},{"$f":"IF(Útravaló!A5=\"nem magánszemély\",Útravaló!N15,Útravaló!G15)","v":0}]
["Tehergépkocsi 3,5 t teherbírás alatt","Tehergépkocsi 3,5 t teherbírás alatt","Tehergépkocsi 3,5 t teherbírás alatt",{"$f":"IF(Útravaló!A5=\"nem magánszemély\",Útravaló!J16,Útravaló!B16)","v":2411},{"$f":"IF(Útravaló!A5=\"nem magánszemély\",Útravaló!K16,Útravaló!C16)","v":30000},{"$f":"IF(Útravaló!A5=\"nem magánszemély\",Útravaló!L16,Útravaló!D16)","v":0},{"$f":"IF(Útravaló!A5=\"nem magánszemély\",Útravaló!M16,Útravaló!E16)","v":0},{"$f":"IF(Útravaló!A5=\"nem magánszemély\",Útravaló!N16,Útravaló!G16)","v":0}]
["Tehergépkocsi 3,5 t - 12 t teherbírás között",null,null,{"$f":"IF(Útravaló!A5=\"nem magánszemély\",Útravaló!J17,Útravaló!B17)","v":2412},{"$f":"IF(Útravaló!A11=\"nem magánszemély\",Útravaló!K17,Útravaló!C17)","v":33000},{"$f":"IF(Útravaló!A5=\"nem magánszemély\",Útravaló!L17,Útravaló!D17)","v":0},{"$f":"IF(Útravaló!A5=\"nem magánszemély\",Útravaló!M17,Útravaló!E17)","v":0},{"$f":"IF(Útravaló!A5=\"nem magánszemély\",Útravaló!N17,Útravaló!G17)","v":0}]
[{"$f":"IF(Útravaló!A5=\"nem magánszemély\",\"Tehergépkocsi 12 t teherbírás felett\",\"Személygépkocsi utánfutó\")","v":"Tehergépkocsi 12 t teherbírás felett"},null,null,{"$f":"IF(Útravaló!A5=\"nem magánszemély\",Útravaló!J18,Útravaló!B18)","v":2413},{"$f":"IF(Útravaló!A5=\"nem magánszemély\",Útravaló!K18,Útravaló!C18)","v":50000},{"$f":"IF(Útravaló!A5=\"nem magánszemély\",Útravaló!L18,Útravaló!D18)","v":0},{"$f":"IF(Útravaló!A5=\"nem magánszemély\",Útravaló!M18,Útravaló!E18)","v":0},{"$f":"IF(Útravaló!A5=\"nem magánszemély\",Útravaló!N18,Útravaló!G18)","v":0}]
[{"$f":"IF(Útravaló!A5=\"nem magánszemély\",\"Nyerges vontató\",\"Lakókocsi utánfutó\")","v":"Nyerges vontató"},"Nyerges vontató","Nyerges vontató",{"$f":"IF(Útravaló!A5=\"nem magánszemély\",Útravaló!J19,Útravaló!B19)","v":2414},{"$f":"IF(Útravaló!A5=\"nem magánszemély\",Útravaló!K19,Útravaló!C19)","v":52000},{"$f":"IF(Útravaló!A5=\"nem magánszemély\",Útravaló!L19,Útravaló!D19)","v":0},{"$f":"IF(Útravaló!A5=\"nem magánszemély\",Útravaló!M19,Útravaló!E19)","v":0},{"$f":"IF(Útravaló!A5=\"nem magánszemély\",Útravaló!N19,Útravaló!G19)","v":0}]
[{"$f":"IF(Útravaló!A5=\"nem magánszemély\",\"Személygépkocsi utánfutó\",\"Motorcsónak 100 KW teljesítmény alatt és scooter\")","v":"Személygépkocsi utánfutó"},"Személygépkocsi utánfutó","Személygépkocsi utánfutó",{"$f":"IF(Útravaló!A5=\"nem magánszemély\",Útravaló!J20,Útravaló!B20)","v":2511},{"$f":"IF(Útravaló!A5=\"nem magánszemély\",Útravaló!K20,Útravaló!C20)","v":7500},{"$f":"IF(Útravaló!A5=\"nem magánszemély\",Útravaló!L20,Útravaló!D20)","v":0},{"$f":"IF(Útravaló!A5=\"nem magánszemély\",Útravaló!M20,Útravaló!E20)","v":0},{"$f":"IF(Útravaló!A5=\"nem magánszemély\",Útravaló!N20,Útravaló!G20)","v":0}]
[{"$f":"IF(Útravaló!A5=\"nem magánszemély\",\"Lakókocsi utánfutó\",\"Motorcsónak 100 KW - 150 KW teljesítmény között\")","v":"Lakókocsi utánfutó"},"Lakókocsi utánfutó","Lakókocsi utánfutó",{"$f":"IF(Útravaló!A5=\"nem magánszemély\",Útravaló!J21,Útravaló!B21)","v":2512},{"$f":"IF(Útravaló!A5=\"nem magánszemély\",Útravaló!K21,Útravaló!C21)","v":12000},{"$f":"IF(Útravaló!A5=\"nem magánszemély\",Útravaló!L21,Útravaló!D21)","v":0},{"$f":"IF(Útravaló!A5=\"nem magánszemély\",Útravaló!M21,Útravaló!E21)","v":0},{"$f":"IF(Útravaló!A5=\"nem magánszemély\",Útravaló!N21,Útravaló!G21)","v":0}]
[{"$f":"IF(Útravaló!A5=\"nem magánszemély\",\"Tehergépkocsi utánfutó\",\"Rendszám nélküli mezőgazdasági és erdei jármű, traktor\")","v":"Tehergépkocsi utánfutó"},"Tehergépkocsi utánfutó","Tehergépkocsi utánfutó",{"$f":"IF(Útravaló!A5=\"nem magánszemély\",Útravaló!J22,Útravaló!B22)","v":2513},{"$f":"IF(Útravaló!A5=\"nem magánszemély\",Útravaló!K22,Útravaló!C22)","v":13000},{"$f":"IF(Útravaló!A5=\"nem magánszemély\",Útravaló!L22,Útravaló!D22)","v":0},{"$f":"IF(Útravaló!A5=\"nem magánszemély\",Útravaló!M22,Útravaló!E22)","v":0},{"$f":"IF(Útravaló!A5=\"nem magánszemély\",Útravaló!N22,Útravaló!G22)","v":0}]
[{"$f":"IF(Útravaló!A5=\"nem magánszemély\",\"Nyerges vontató utánfutó\",\"\")","v":"Nyerges vontató utánfutó"},"Nyerges vontató utánfutó","Nyerges vontató utánfutó",{"$f":"IF(Útravaló!A5=\"nem magánszemély\",Útravaló!J23,\"\")","v":2514},{"$f":"IF(Útravaló!A5=\"nem magánszemély\",Útravaló!K23,\"\")","v":22000},{"$f":"IF(Útravaló!A5=\"nem magánszemély\",Útravaló!L23,\"\")","v":0},{"$f":"IF(Útravaló!A5=\"nem magánszemély\",Útravaló!M23,\"\")","v":0},{"$f":"IF(Útravaló!A5=\"nem magánszemély\",Útravaló!N23,\"\")","v":0}]
[{"$f":"IF(Útravaló!A5=\"nem magánszemély\",\"Autóbusz 20 férőhelyig\",\"\")","v":"Autóbusz 20 férőhelyig"},"Autóbusz 20 férőhelyig","Autóbusz 20 férőhelyig",{"$f":"IF(Útravaló!A5=\"nem magánszemély\",Útravaló!J24,\"\")","v":2611},{"$f":"IF(Útravaló!A5=\"nem magánszemély\",Útravaló!K24,\"Összesen\")","v":34000},{"$f":"IF(Útravaló!A5=\"nem magánszemély\",Útravaló!L24,Útravaló!D24)","v":0},{"$f":"IF(Útravaló!A5=\"nem magánszemély\",Útravaló!M24,Útravaló!E24)","v":0},{"$f":"IF(Útravaló!A5=\"nem magánszemély\",Útravaló!N24,Útravaló!G24)","v":0}]
[{"$f":"IF(Útravaló!A5=\"nem magánszemély\",Útravaló!I25,\"\")","v":"Autóbusz 20 férőhely felett"},"Autóbusz 20 férőhely felett","Autóbusz 20 férőhely felett",{"$f":"IF(Útravaló!A5=\"nem magánszemély\",Útravaló!J25,\"\")","v":2612},{"$f":"IF(Útravaló!A5=\"nem magánszemély\",Útravaló!K25,\"\")","v":73000},{"$f":"IF(Útravaló!A5=\"nem magánszemély\",Útravaló!L25,\"\")","v":0},{"$f":"IF(Útravaló!A5=\"nem magánszemély\",Útravaló!M25,\"\")","v":0},{"$f":"IF(Útravaló!A5=\"nem magánszemély\",Útravaló!N25,\"\")","v":0}]
[{"$f":"IF(Útravaló!A5=\"nem magánszemély\",Útravaló!I26,\"Gyakoriság szerint fizetendő díj\")","v":"Motorcsónak 100 KW teljesítmény alatt és scooter"},"Autóbusz 20 férőhely felett","Autóbusz 20 férőhely felett",{"$f":"IF(Útravaló!A5=\"nem magánszemély\",Útravaló!J26,\"\")","v":2711},{"$f":"IF(Útravaló!A5=\"nem magánszemély\",Útravaló!K26,Útravaló!J5)","v":27000},{"$f":"IF(Útravaló!A5=\"nem magánszemély\",Útravaló!L26,\"\")","v":0},{"$f":"IF(Útravaló!A5=\"nem magánszemély\",Útravaló!M26,\"\")","v":0},{"$f":"IF(Útravaló!A5=\"nem magánszemély\",Útravaló!N26,\"\")","v":0}]
[{"$f":"IF(Útravaló!A5=\"nem magánszemély\",Útravaló!I27,\"Első díj\")","v":"Motorcsónak 100 KW - 150 KW teljesítmény között"},"Autóbusz 20 férőhely felett","Autóbusz 20 férőhely felett",{"$f":"IF(Útravaló!A5=\"nem magánszemély\",Útravaló!J27,\"\")","v":2712},{"$f":"IF(Útravaló!A5=\"nem magánszemély\",Útravaló!K27,Útravaló!J7)","v":80000},{"$f":"IF(Útravaló!A5=\"nem magánszemély\",Útravaló!L27,\"\")","v":0},{"$f":"IF(Útravaló!A5=\"nem magánszemély\",Útravaló!M27,\"\")","v":0},{"$f":"IF(Útravaló!A5=\"nem magánszemély\",Útravaló!N27,\"\")","v":0}]
[{"$f":"IF(Útravaló!A5=\"nem magánszemély\",Útravaló!I28,\"\")","v":"Rendszám nélküli mezőgazdasági és erdei jármű, traktor"},"Autóbusz 20 férőhely felett","Autóbusz 20 férőhely felett",{"$f":"IF(Útravaló!A5=\"nem magánszemély\",Útravaló!J28,\"\")","v":2811},{"$f":"IF(Útravaló!A5=\"nem magánszemély\",Útravaló!K28,\"\")","v":15000},{"$f":"IF(Útravaló!A5=\"nem magánszemély\",Útravaló!L28,\"\")","v":0},{"$f":"IF(Útravaló!A5=\"nem magánszemély\",Útravaló!M28,\"\")","v":0},{"$f":"IF(Útravaló!A5=\"nem magánszemély\",Útravaló!N28,\"\")","v":0}]
[{"$f":"IF(Útravaló!A5=\"nem magánszemély\",Útravaló!I29,\"\")","v":"Taxi"},"Autóbusz 20 férőhely felett","Autóbusz 20 férőhely felett",{"$f":"IF(Útravaló!A5=\"nem magánszemély\",Útravaló!J29,\"\")","v":2911},{"$f":"IF(Útravaló!A5=\"nem magánszemély\",Útravaló!K29,\"\")","v":68000},{"$f":"IF(Útravaló!A5=\"nem magánszemély\",Útravaló!L29,\"\")","v":0},{"$f":"IF(Útravaló!A5=\"nem magánszemély\",Útravaló!M29,\"\")","v":0},{"$f":"IF(Útravaló!A5=\"nem magánszemély\",Útravaló!N29,\"\")","v":0}]
[{"$f":"IF(Útravaló!A5=\"nem magánszemély\",Útravaló!I30,\"\")","v":"Bérautó"},"Autóbusz 20 férőhely felett","Autóbusz 20 férőhely felett",{"$f":"IF(Útravaló!A5=\"nem magánszemély\",Útravaló!J30,\"\")","v":2913},{"$f":"IF(Útravaló!A5=\"nem magánszemély\",Útravaló!K30,\"\")","v":37000},{"$f":"IF(Útravaló!A5=\"nem magánszemély\",Útravaló!L30,\"\")","v":0},{"$f":"IF(Útravaló!A5=\"nem magánszemély\",Útravaló!M30,\"\")","v":0},{"$f":"IF(Útravaló!A5=\"nem magánszemély\",Útravaló!N30,\"\")","v":0}]
[{"$f":"IF(Útravaló!A5=\"nem magánszemély\",Útravaló!I31,\"\")","v":"Autós iskola motorkerékpárja (segédmotoros és cm³-től független)"},"Autóbusz 20 férőhely felett","Autóbusz 20 férőhely felett",{"$f":"IF(Útravaló!A5=\"nem magánszemély\",Útravaló!J31,\"\")","v":2920},{"$f":"IF(Útravaló!A5=\"nem magánszemély\",Útravaló!K31,\"\")","v":17000},{"$f":"IF(Útravaló!A5=\"nem magánszemély\",Útravaló!L31,\"\")","v":0},{"$f":"IF(Útravaló!A5=\"nem magánszemély\",Útravaló!M31,\"\")","v":0},{"$f":"IF(Útravaló!A5=\"nem magánszemély\",Útravaló!N31,\"\")","v":0}]
[{"$f":"IF(Útravaló!A5=\"nem magánszemély\",Útravaló!I32,\"\")","v":"Autós iskola személygépkocsija"},"Autóbusz 20 férőhely felett","Autóbusz 20 férőhely felett",{"$f":"IF(Útravaló!A5=\"nem magánszemély\",Útravaló!J32,\"\")","v":2914},{"$f":"IF(Útravaló!A5=\"nem magánszemély\",Útravaló!K32,\"\")","v":41000},{"$f":"IF(Útravaló!A5=\"nem magánszemély\",Útravaló!L32,\"\")","v":0},{"$f":"IF(Útravaló!A5=\"nem magánszemély\",Útravaló!M32,\"\")","v":0},{"$f":"IF(Útravaló!A5=\"nem magánszemély\",Útravaló!N32,\"\")","v":0}]
[{"$f":"IF(Útravaló!A5=\"nem magánszemély\",Útravaló!I33,\"\")","v":"Autós iskola tehergépkocsija"},"Autóbusz 20 férőhely felett","Autóbusz 20 férőhely felett",{"$f":"IF(Útravaló!A5=\"nem magánszemély\",Útravaló!J33,\"\")","v":2915},{"$f":"IF(Útravaló!A5=\"nem magánszemély\",Útravaló!K33,\"\")","v":36000},{"$f":"IF(Útravaló!A5=\"nem magánszemély\",Útravaló!L33,\"\")","v":0},{"$f":"IF(Útravaló!A5=\"nem magánszemély\",Útravaló!M33,\"\")","v":0},{"$f":"IF(Útravaló!A5=\"nem magánszemély\",Útravaló!N33,\"\")","v":0}]
[{"$f":"IF(Útravaló!A5=\"nem magánszemély\",Útravaló!I34,\"\")","v":"Autós iskola autóbusza (férőhelytől függetlenül)"},"Autóbusz 20 férőhely felett","Autóbusz 20 férőhely felett",{"$f":"IF(Útravaló!A5=\"nem magánszemély\",Útravaló!J34,\"\")","v":2921},{"$f":"IF(Útravaló!A5=\"nem magánszemély\",Útravaló!K34,\"\")","v":52000},{"$f":"IF(Útravaló!A5=\"nem magánszemély\",Útravaló!L34,\"\")","v":0},{"$f":"IF(Útravaló!A5=\"nem magánszemély\",Útravaló!M34,\"\")","v":0},{"$f":"IF(Útravaló!A5=\"nem magánszemély\",Útravaló!N34,\"\")","v":0}]
[{"$f":"IF(Útravaló!A5=\"nem magánszemély\",Útravaló!I35,\"\")","v":"Futárszolgálat személygépkocsija"},"Autóbusz 20 férőhely felett","Autóbusz 20 férőhely felett",{"$f":"IF(Útravaló!A5=\"nem magánszemély\",Útravaló!J35,\"\")","v":2916},{"$f":"IF(Útravaló!A5=\"nem magánszemély\",Útravaló!K35,\"\")","v":36000},{"$f":"IF(Útravaló!A5=\"nem magánszemély\",Útravaló!L35,\"\")","v":0},{"$f":"IF(Útravaló!A5=\"nem magánszemély\",Útravaló!M35,\"\")","v":0},{"$f":"IF(Útravaló!A5=\"nem magánszemély\",Útravaló!N35,\"\")","v":0}]
[{"$f":"IF(Útravaló!A5=\"nem magánszemély\",Útravaló!I36,\"\")","v":"Futárszolgálat motorkerékpárja"},"Autóbusz 20 férőhely felett","Autóbusz 20 férőhely felett",{"$f":"IF(Útravaló!A5=\"nem magánszemély\",Útravaló!J36,\"\")","v":2917},{"$f":"IF(Útravaló!A5=\"nem magánszemély\",Útravaló!K36,\"\")","v":22000},{"$f":"IF(Útravaló!A5=\"nem magánszemély\",Útravaló!L36,\"\")","v":0},{"$f":"IF(Útravaló!A5=\"nem magánszemély\",Útravaló!M36,\"\")","v":0},{"$f":"IF(Útravaló!A5=\"nem magánszemély\",Útravaló!N36,\"\")","v":0}]
[{"$f":"IF(Útravaló!A5=\"nem magánszemély\",Útravaló!I37,\"\")","v":"Futárszolgálat tehergépkocsija 3,5 t teherbírás alatt"},"Autóbusz 20 férőhely felett","Autóbusz 20 férőhely felett",{"$f":"IF(Útravaló!A5=\"nem magánszemély\",Útravaló!J37,\"\")","v":2918},{"$f":"IF(Útravaló!A5=\"nem magánszemély\",Útravaló!K37,\"\")","v":36000},{"$f":"IF(Útravaló!A5=\"nem magánszemély\",Útravaló!L37,\"\")","v":0},{"$f":"IF(Útravaló!A5=\"nem magánszemély\",Útravaló!M37,\"\")","v":0},{"$f":"IF(Útravaló!A5=\"nem magánszemély\",Útravaló!N37,\"\")","v":0}]
[{"$f":"IF(Útravaló!A5=\"nem magánszemély\",Útravaló!I38,\"\")","v":"Futárszolgálat tehergépkocsija 3,5 t - 12 t teherbírás között"},"Autóbusz 20 férőhely felett","Autóbusz 20 férőhely felett",{"$f":"IF(Útravaló!A5=\"nem magánszemély\",Útravaló!J38,\"\")","v":2919},{"$f":"IF(Útravaló!A5=\"nem magánszemély\",Útravaló!K38,\"\")","v":44000},{"$f":"IF(Útravaló!A5=\"nem magánszemély\",Útravaló!L38,\"\")","v":0},{"$f":"IF(Útravaló!A5=\"nem magánszemély\",Útravaló!M38,\"\")","v":0},{"$f":"IF(Útravaló!A5=\"nem magánszemély\",Útravaló!N38,\"\")","v":0}]
[]
[{"$f":"IF(Útravaló!A5=\"nem magánszemély\",\"Összesen\",\"\")","v":"Összesen"},null,null,null,null,{"$f":"IF(Útravaló!A5=\"nem magánszemély\",Útravaló!L40,\"\")","v":0},{"$f":"IF(Útravaló!A5=\"nem magánszemély\",Útravaló!M40,\"\")","v":0},{"$f":"IF(Útravaló!A5=\"nem magánszemély\",Útravaló!N40,\"\")","v":0}]
[]
[]
[]
[{"$f":"IF(Útravaló!A5=\"nem magánszemély\",\"Gyakoriság szerint fizetendő díj\",\"\")","v":"Gyakoriság szerint fizetendő díj"},null,null,null,{"$f":"IF(Útravaló!A5=\"nem magánszemély\",Útravaló!J5,\"\")","v":0}]
[null,{"$f":"IF(Útravaló!A5=\"nem magánszemély\",\"Első díj\",\"\")","v":"Első díj"},null,null,{"$f":"IF(Útravaló!A5=\"nem magánszemély\",Útravaló!J7,\"\")","v":0}]
[]
["Díjajánlat kiadva: ",{"$f":"TODAY()","v":"2019-12-12"}]
[]
[]
["Biztosításközvetítő neve: "]
[]
["Figyelem:"]
["Felhívjuk szíves figyelmét, hogy jelen ajánlatunk indikatív jellegű, további tárgyalások alapjául szolgál, és nem jelent szerződéskötési kötelezettségvállalást a D.A.S. JogSzerviz részéről. Az alábbiakban ismertetett konstrukciókat a Társaságukról jelenleg rendelkezésünkre álló információk alapján, meghatározott feltételek fennállása esetén ajánljuk. Ajánlatunk a kiadástól számított 30 napig szolgál a köztünk lévő tárgyalás alapjának."]

{"sheet":"Színkódok","index":13,"n_rows":24,"n_cols":10,"rows_kept":24,"cut":false,"hidden":true,"merged":[]}
[]
[]
[]
[null,null,null,null,null,null,null,null,"Legördülő lista*","*Kattintás után jelenik meg a legördülő lista."]
[]
[]
[]
[null,null,null,null,null,null,null,null,"Írható cella"]
[]
[]
[]
[null,null,null,null,null,null,null,null,"Összes fizetendő éves díj"]
[]
[]
[]
[null,null,null,null,null,null,null,null,"Gyakoriság szerint fizetendő díj"]
[]
[]
[]
[null,null,null,null,null,null,null,null,"Első díj"]
[]
[]
[]
[null,null,null,null,null,null,null,null,"Figyelmeztetés"]

{"sheet":"Adatok","index":14,"n_rows":40,"n_cols":17,"rows_kept":40,"cut":false,"hidden":true,"merged":[]}
["Classic termékek"]
[]
["Terméknév","Alapár","Díjfiz mód","Mód szorzó","Díjfiz gyak","Gyak szorzó","Gyakoriság","Éves gyak","Elsődíj szorzó","HÍD",null,"Híd további autó",null,"Szerződő","Gépjárművezetői alapár"]
["Standard Classic",58000,"Csoportos",1,"Éves",1,1,1,1,"Igen",50000,16000,null,"Magánszemély",11000]
["Médium Classic",78000,"Átutalásos",1.0249999999999999,"Féléves",1.05,0.5,2,1,"Nem",0,null,null,"NEM magánszemély",16000]
["Prémium Classic",98000,"Csekkes",1.0249999999999999,"Negyedéves",1.07,0.25,4,1]
["VIP Standard",154000,null,null,"Havi",1.1200000000000001,8.3333333333333301E-2,12,2]
["VIP Médium",187000]
["VIP Prémium",221000]
[]
[]
["Magánszemély útravaló","Alapár",null,"Nem magánszemély útravaló árak",null,null,"Indexálás",null,null,"2010.07.26 előtt jött létre?"]
["Segédmotoros kerékpár és motorkerékpár 500 cm³ alatt",13000,null,"Segédmotoros kerékpár és motorkerékpár 500 cm³ alatt",17000,null,"2014.07.01 előtt",7.0000000000000007E-2,null,"igen"]
["Motorkerékpár 500 cm³ felett",17000,null,"Motorkerékpár 500 cm³ felett",19000,null,"2014.07.01-2015.07.31",4.9799999999999997E-2,null,"nem"]
["Személygépkocsi 1500 cm³ alatt",20000,null,"Személygépkocsi 1500 cm³ alatt",19000,null,"2015.08.01 után",0.04]
["Személygépkocsi 1500 cm³ felett",25000,null,"Személygépkocsi 1500 cm³ felett",24000]
["Lakókocsi",17000,null,"Lakókocsi",24000]
["Tehergépkocsi 3,5 t teherbírás* alatt",27000,null,"Tehergépkocsi 3,5 t teherbírás alatt",30000,null,"Jogtárs",null,"csomag"]
["Tehergépkocsi 3,5 t - 12 t teherbírás* között",33000,null,"Tehergépkocsi 3,5 t - 12 t teherbírás között",37000,null,"Vállalkozás",null,"Standard"]
["Személygépkocsi utánfutó",6500,null,"Tehergépkocsi 12 t teherbírás felett",50000,null,"Társasház",null,"Prémium"]
["Lakókocsi utánfutó",8500,null,"Nyerges vontató",52000]
["Motorcsónak 100 KW teljesítmény alatt és scooter",20000,null,"Személygépkocsi utánfutó",7500,null,"Vállalkozás"]
["Motorcsónak 100 KW -150 KW teljesítmény között",42000,null,"Lakókocsi utánfutó",12000,null,"Standard",null,null,null,null,null,"Prémium"]
["Rendszám nélküli mezőgazdasági és erdei jármű, traktor",8500,null,"Tehergépkocsi utánfutó",13000,null,null,"0-30000000","30000001-200000000","200000001-500000000","500000001-3000000000",null,null,"0-30000000","30000001-200000000","200000001-500000000","500000001-3000000000"]
[null,null,null,"Nyerges vontató utánfutó",22000,null,"0-9",126000,313000,376000,439000,null,"0-9",188000,470000,546000,658000]
[null,null,null,"Autóbusz 20 férőhelyig",34000,null,"10-49",144000,360000,432000,504000,null,"10-49",216000,540000,648000,756000]
["Jogtárs, Új jogtárs",null,null,"Autóbusz 20 férőhely felett",73000,null,"50-99",163000,407000,489000,570000,null,"50-99",245000,611000,733000,855000]
[null,null,null,"Motorcsónak 100 KW teljesítmény alatt és scooter",27000,null,"100-249",182000,454000,545000,636000,null,"100-249",273000,681000,817000,954000]
[null,null,null,"Motorcsónak 100 KW - 150 KW teljesítmény között",80000]
[null,null,null,"Rendszám nélküli mezőgazdasági és erdei jármű, traktor",15000]
[null,null,null,"Taxi",68000,null,0,9,1]
[null,null,null,"Bérautó",37000,null,10,49,2]
[null,null,null,"Autós iskola motorkerékpárja (segédmotoros és cm³-től független)",17000,null,50,99,3]
[null,null,null,"Autós iskola személygépkocsija",41000,null,100,249,4]
[null,null,null,"Autós iskola tehergépkocsija",36000]
[null,null,null,"Autós iskola autóbusza (férőhelytől függetlenül)",52000,null,0,30000000,1]
[null,null,null,"Futárszolgálat személygépkocsija",36000,null,30000001,200000000,2]
[null,null,null,"Futárszolgálat motorkerékpárja",22000,null,200000001,500000000,3]
[null,null,null,"Futárszolgálat tehergépkocsija 3,5 t teherbírás alatt",36000,null,500000001,3000000000,4]
[null,null,null,"Futárszolgálat tehergépkocsija 3,5 t - 12 t teherbírás között",44000]

{"sheet":"Változáskövetés","index":15,"n_rows":11,"n_cols":3,"rows_kept":11,"cut":false,"hidden":true,"merged":[]}
[]
["2.0","2015.03.09","Első kiadott verzió"]
["2.1","2015.04.22","2015.augusztól az indexálás mértéke 4%"]
["3.0","2015.06.19","Szerződés módosítás beírható Éves díjjal"]
["4.0","2016.01.22","Havi fizetési gyakoriság"]
["5.0","2019-08-12","Átírás új excel fájlba, adatok frissítése"]
["5.1","2019-08-14","Jogtárs hozzáadása"]
["5.2","2019-08-14","Kisebb javítások, szerkesztés"]
["5.3","2019-08-15","Formázás"]
["5.4","2019-08-16","Formázás"]
["6","2019-10-29","Makrók hozzáadása"]

{"sheet":"Flotta adatközlő","index":16,"n_rows":56,"n_cols":9,"rows_kept":56,"cut":false,"hidden":true,"merged":[[0,0,2,6],[55,1,55,3],[50,1,50,3],[50,4,50,6],[55,6,55,7],[6,2,6,4],[6,0,6,1],[54,1,54,3],[6,5,6,6],[6,7,6,8],[5,2,5,8],[3,0,3,1],[4,0,4,1],[5,0,5,1],[4,2,4,8],[54,6,54,7]]}
["Útravaló Flotta adatközlő"]
[]
[]
["Biztosított adatai"]
["Cég neve",null,{"$f":"IF('Útravaló díj'!A14=\"cég neve\",'Útravaló díj'!C14,\"\")","v":0}]
["Cég székhelye",null,{"$f":"IF('Útravaló díj'!A15=\"cég székhelye\",'Útravaló díj'!C15,\"\")","v":0}]
["Cég adószáma",null,{"$f":"IF('Útravaló díj'!A16=\"cég adószáma\",'Útravaló díj'!C16,\"\")","v":0},null,null,"Ajánlat száma:"]
[]
["Rendszám","Gyártmány","Típus","KW","Cm3","Teherbírás","Termékszám","Birtokviszony","Éves alapdíj"]
[]
[]
[]
[]
[]
[]
[]
[]
[]
[]
[]
[]
[]
[]
[]
[]
[]
[]
[]
[]
[]
[]
[]
[]
[]
[]
[]
[]
[]
[]
[]
[]
[]
[]
[]
[]
[]
[]
[]
[]
[]
["Dátum:",{"$f":"TODAY()","v":"2019-12-12"}]
[]
[]
[]
[null,"__________________________",null,null,null,null,"________________________"]
[null,"           Üzletkötő aláírása",null,null,null,null,"   Ügyfél aláírása"]

{"sheet":"Jogtárs engedély","index":17,"n_rows":36,"n_cols":7,"rows_kept":36,"cut":false,"hidden":true,"merged":[[35,2,35,5],[17,1,17,6],[19,1,22,6],[24,1,27,6],[29,0,32,0],[29,1,32,6],[34,2,34,5],[15,1,15,2],[15,3,15,4],[15,5,15,6],[7,1,7,6],[8,1,8,6],[9,1,9,6],[10,1,10,6],[11,1,11,6],[12,1,12,6],[0,0,2,3],[4,1,4,6],[5,1,5,6],[6,1,6,6],[13,1,13,6]]}
["D.A.S. Jogtárs Egyedi Engedély Kérelem"]
[]
[]
[]
["Kérelem dátuma"]
["Étékesítő neve, kódja "]
["Termék neve"]
["Cég neve"]
["Cég székhelye"]
["Cég adószáma"]
["Alapítás éve"]
["Tulajdonos"]
["Fő tevékenység Teáor"]
["Egyéb tevékenység Teáor"]
["Utolsó 3 év dátum",null,"év",null,"év",null,"év"]
["Utolsó 3 év árbevétel összeg"]
["Dolgozói létszám utolsó 3 év",null,"fő",null,"fő",null,"fő"]
["Ingatlan darabszám"]
[]
["Kérés"]
[]
[]
[]
[]
["Indoklás"]
[]
[]
[]
[]
["D.A.S Értékesítés véleménye:"]
[]
[]
[]
[]
[]
[null,null,"Üzletkötő aláírása"]

{"sheet":"Jogtárs egyedi díj","index":18,"n_rows":43,"n_cols":6,"rows_kept":43,"cut":false,"hidden":true,"merged":[[27,5,27,8],[29,5,29,8],[31,5,31,8],[30,5,30,8],[39,2,39,9],[36,2,36,3],[36,4,36,9],[33,5,33,8],[29,2,29,3],[30,2,30,3],[31,2,31,3],[33,2,33,3],[11,0,11,1],[14,0,14,1],[29,0,29,1],[30,0,30,1],[31,0,31,1],[0,0,2,5],[39,0,39,1],[7,0,7,3],[9,2,9,9],[17,2,17,9],[22,4,22,9],[27,0,27,1],[24,2,24,3],[25,2,25,3],[27,2,27,3],[8,2,8,9],[11,2,11,9],[10,2,10,9],[15,2,15,9],[16,2,16,9],[17,0,17,1],[41,0,41,1],[42,0,46,11],[33,0,33,1],[36,0,36,1],[5,0,5,9],[20,0,20,9],[26,10,26,11],[24,10,24,12],[27,10,27,12],[22,0,22,3],[24,0,24,1],[25,0,25,1],[25,10,25,12],[15,0,15,1],[16,0,16,1],[10,0,10,1]]}
["D.A.S. Jogvédelmi Biztosító Zrt.\n1082 Budapest, Futó utca 47-53.\nTel.: +36 1 486 3600\ninfo@das.hu - www.das.hu"]
[]
[]
[]
[]
["JOGTÁRS INDIKATÍV DÍJAJÁNLAT VÁLLALKOZÁSOKNAK"]
[]
["Ajánlatkérő cég adatai:"]
["Cég neve: "]
["Cég székhelye"]
["Cég adószáma:"]
["Tevékenység TEÁOR:"]
[]
[]
["Számításhoz adatok:"]
["Éves árbevétel:"]
["Dolgozói létszám:"]
["Ingatlanok db száma:"]
[]
[]
["Számított díj"]
[]
["Biztosítási Összeg \n5.000.000Ft/esemény/év",null,null,null,"Biztosítási Összeg \n10.000.000Ft/esemény/év"]
[]
["Alap díj (ingatlan nélkül)",null,null,null,null,"Alap díj (ingatlan nélkül)"]
["Ingatlan jog éves díj/ingatlan ",null,null,null,null,"Ingatlan jog éves díj/ingatlan"]
[]
["Összesített éves díj (alap+ingatlan)",null,null,null,null,"Összesített éves díj (alap + ingatlan)"]
[]
["Éves:",null,null,null,null,"Éves:"]
["Féléves:",null,null,null,null,"Féléves:"]
["Negyedéves:",null,null,null,null,"Negyedéves:"]
[]
["Ebből az ingatlan: ",null,null,null,null,"Ebből az ingatlan:"]
[]
[]
["Díjajánlat kiadva: ",null,{"$f":"TODAY()","v":"2019-12-12"}]
[]
[]
["Közvetítő neve: "]
[]
["Figyelem:"]
["Felhívjuk szíves figyelmét, hogy jelen ajánlatunk indikatív jellegű, további tárgyalások alapjául szolgál, és nem jelent szerződéskötési kötelezettségvállalást a D.A.S. JogSzerviz részéről. Az alábbiakban ismertetett konstrukciókat a Társaságukról jelenleg rendelkezésünkre álló információk alapján, meghatározott feltételek fennállása esetén ajánljuk. Ajánlatunk a kiadástól számított 30 napig szolgál a köztünk lévő tárgyalás alapjának."]

{"sheet":"MZ Adatok","index":19,"n_rows":4,"n_cols":3,"rows_kept":4,"cut":false,"hidden":true,"merged":[]}
["Tulajdonosa",null,"Igen"]
["Üzemben tartója",null,"Nem"]
["Bérlője",null,"Bizonytalan"]
["Lízingbe vevője"]

{"sheet":"Adatváltozás nyomtatványok","index":20,"n_rows":15,"n_cols":3,"rows_kept":15,"cut":false,"hidden":true,"merged":[[6,2,8,6],[10,2,12,6],[14,2,16,6],[2,2,4,6]]}
[]
[]
[null,null,"Adatváltozás bejelentő biztosított érdek"]
[]
[]
[]
[null,null,"Adatváltozás bejelentő általános adatok"]
[]
[]
[]
[null,null,"Jogtárs változás bejelentő szerződő adatai"]
[]
[]
[]
[null,null,"Jogtárs változás bejelentő biztosított adatai ingatlanjai"]